bitfinex-derivatives/quotes_BTCF0:USTF0_20210102
["timestamp","ask_amount","ask_price","bid_price","bid_amount"]
[1609566069867,0.00041271,29515.0,29511.0,0.0003721]
[1609566070267,0.00041271,29515.0,29513.0,0.0003721]
[1609566070467,4.1896,29514.0,29512.0,0.0003721]
[1609566070667,4.1896,29514.0,29508.0,0.18043158]
[1609566070869,0.00471996,29515.0,29508.0,0.18043158]
[1609566071068,0.00041276,29513.0,29508.0,0.18043158]
[1609566071267,0.18043158,29509.0,29508.0,0.18043158]
[1609566071467,0.18043158,29509.0,29508.0,0.18080369]
[1609566075672,0.18043158,29509.0,29508.0,0.18043158]
[1609566075872,0.18043158,29509.0,29508.0,0.18080369]
[1609566080680,0.18043158,29509.0,29508.0,0.18043158]
[1609566080876,0.18043158,29509.0,29508.0,0.1808037]
[1609566083581,0.87063158,29509.0,29508.0,0.1808037]
[1609566084581,0.97063158,29509.0,29508.0,0.1808037]
[1609566084882,0.97063158,29509.0,29508.0,0.2838037]
[1609566085086,0.97063158,29509.0,29508.0,0.1808037]
[1609566086085,0.97063158,29509.0,29508.0,0.2831037]
[1609566087188,0.97063158,29509.0,29508.0,0.1808037]
[1609566088190,0.97063158,29509.0,29508.0,0.2809037]
[1609566088991,0.97063158,29509.0,29508.0,0.1808037]
[1609566089893,0.97063158,29509.0,29508.0,0.18043158]
[1609566090093,0.97063158,29509.0,29508.0,0.1808037]
[1609566090694,0.97063158,29509.0,29508.0,0.18043158]
[1609566091194,0.97063158,29509.0,29508.0,0.28260371]
[1609566091594,0.97063158,29509.0,29508.0,0.00037213]
[1609566092194,0.97063158,29509.0,29495.0,5.1164]
[1609566092195,0.97063158,29509.0,29498.0,0.00037213]
[1609566092595,0.97063158,29509.0,29508.0,0.00037213]
[1609566092795,0.97063158,29509.0,29497.0,0.00037215]
[1609566093198,0.97063158,29509.0,29496.0,0.1011]
[1609566093397,0.7902,29509.0,29503.0,0.18043158]
[1609566093798,0.7902,29509.0,29504.0,0.00037215]
[1609566095397,0.00041281,29508.0,29504.0,0.00037215]
[1609566095597,0.18043158,29505.0,29504.0,0.00037215]
[1609566095797,0.85183158,29505.0,29504.0,0.00037215]
[1609566096499,0.18043158,29505.0,29504.0,0.00037215]
[1609566097300,4.77953158,29505.0,29504.0,0.00037215]
[1609566097501,4.77953158,29505.0,29497.0,0.18043158]
[1609566097903,5.77953158,29505.0,29504.0,0.00037163]
[1609566098102,5.77953158,29505.0,29498.0,0.00037163]
[1609566098705,1.18043158,29505.0,29494.0,0.14688]
[1609566098904,5.582,29499.0,29491.0,1.78375697]
[1609566099104,5.582,29499.0,29495.0,0.00037167]
[1609566099304,5.582,29499.0,29491.0,1.56975697]
[1609566099503,0.18043158,29492.0,29491.0,1.56975697]
[1609566099704,0.96313158,29492.0,29491.0,1.56975697]
[1609566099904,0.96313158,29492.0,29491.0,1.57012866]
[1609566100107,0.96313158,29492.0,29491.0,0.00037169]
[1609566100706,0.96313158,29492.0,29488.0,0.00037177]
[1609566100907,1.07904158,29492.0,29491.0,0.00037177]
[1609566101309,1.17995459,29492.0,29488.0,0.00037182]
[1609566101512,0.99911,29492.0,29491.0,0.00037182]
[1609566101709,0.99911,29492.0,29489.0,0.00037182]
[1609566102110,0.99911,29492.0,29491.0,0.0003718]
[1609566102309,0.99911,29492.0,29490.0,0.0003718]
[1609566102509,0.99911,29492.0,29487.0,0.0003718]
[1609566102709,0.99911,29492.0,29491.0,0.0003718]
[1609566103111,0.21641,29492.0,29488.0,0.0003718]
[1609566103311,0.21641,29492.0,29491.0,0.0003718]
[1609566103510,0.39684158,29492.0,29491.0,0.91593158]
[1609566103814,0.39684158,29492.0,29491.0,0.91630338]
[1609566104011,0.29634158,29492.0,29491.0,0.91630338]
[1609566104612,0.29634158,29492.0,29491.0,0.91630336]
[1609566105212,0.11591,29492.0,29491.0,1.91630336]
[1609566105814,0.00429516,29501.0,29491.0,2.95759509]
[1609566106013,0.00429516,29501.0,29491.0,1.22209509]
[1609566106214,0.00429516,29501.0,29492.0,0.0003717]
[1609566107513,0.00429516,29501.0,29500.0,0.18043158]
[1609566108114,0.00470807,29501.0,29500.0,0.1808033]
[1609566108314,0.61715158,29502.0,29500.0,0.1808033]
[1609566108714,0.61715158,29502.0,29500.0,0.00037172]
[1609566108916,0.61715158,29502.0,29501.0,0.00037172]
[1609566109316,0.61756448,29502.0,29500.0,0.00037172]
[1609566109516,0.61756448,29502.0,29501.0,0.18043158]
[1609566109716,0.61715158,29502.0,29501.0,0.18043158]
[1609566109915,0.61715158,29502.0,29501.0,0.1808033]
[1609566123837,0.43672,29502.0,29501.0,0.1808033]
[1609566124036,0.43672,29502.0,29501.0,1.1808033]
[1609566124435,0.43672,29502.0,29501.0,5.2011033]
[1609566124635,0.15892,29502.0,29501.0,5.24238918]
[1609566124837,0.15933285,29502.0,29501.0,6.2011033]
[1609566125036,0.00041285,29502.0,29501.0,6.2011033]
[1609566125436,0.00041281,29509.0,29501.0,6.2011033]
[1609566125636,0.15647,29510.0,29508.0,0.18043158]
[1609566125836,0.00429163,29511.0,29509.0,0.7446]
[1609566126237,0.00041279,29510.0,29509.0,0.74497161]
[1609566126439,0.00041279,29510.0,29509.0,0.7446]
[1609566126638,0.00041279,29510.0,29509.0,0.74497161]
[1609566127437,0.10301279,29510.0,29509.0,0.74497161]
[1609566127838,0.1026,29510.0,29509.0,0.74497161]
[1609566128039,0.10301277,29510.0,29509.0,0.74497161]
[1609566128240,0.00041277,29510.0,29509.0,0.74497161]
[1609566128540,0.00041277,29515.0,29509.0,0.74497161]
[1609566128740,0.00041277,29510.0,29509.0,0.74497161]
[1609566129042,0.00041277,29514.0,29510.0,0.00037161]
[1609566129340,0.00041277,29510.0,29509.0,0.74497161]
[1609566129540,0.00041277,29513.0,29509.0,0.7446]
[1609566129741,0.00041277,29513.0,29512.0,0.18043158]
[1609566129940,0.00041277,29515.0,29512.0,0.18043158]
[1609566130142,0.00041277,29513.0,29512.0,0.18080318]
[1609566130341,0.00041277,29514.0,29513.0,0.0003716]
[1609566130642,0.00041277,29515.0,29513.0,0.0003716]
[1609566130842,0.11758,29516.0,29513.0,0.0003716]
[1609566131042,0.00041278,29514.0,29513.0,0.0003716]
[1609566131445,0.00041278,29515.0,29513.0,0.00037159]
[1609566131645,0.00041278,29514.0,29513.0,0.00037159]
[1609566132043,0.00041275,29515.0,29513.0,0.00037159]
[1609566134548,0.00041275,29515.0,29512.0,0.18043158]
[1609566134847,0.00041275,29515.0,29513.0,0.00037158]
[1609566135048,0.11758,29516.0,29513.0,0.00037158]
[1609566135548,0.18473511,29517.0,29513.0,0.00037158]
[1609566136147,0.18473511,29517.0,29516.0,0.18043158]
[1609566136347,0.18514786,29517.0,29516.0,0.18080316]
[1609566138050,0.18514786,29517.0,29516.0,0.00037158]
[1609566138552,0.18514786,29517.0,29514.0,0.00037158]
[1609566138751,0.33914786,29517.0,29516.0,0.00037158]
[1609566139051,0.33873511,29517.0,29515.0,0.00037158]
[1609566139251,0.33914786,29517.0,29516.0,0.00037158]
[1609566139551,0.33873511,29517.0,29516.0,0.00037158]
[1609566139851,0.33914786,29517.0,29514.0,0.00037158]
[1609566140050,0.33914786,29517.0,29513.0,4.57493158]
[1609566140051,0.33914786,29517.0,29516.0,0.18080316]
[1609566142757,0.34959728,29517.0,29516.0,0.18080316]
[1609566144058,0.33484433,29517.0,29516.0,0.18080316]
[1609566163891,1.33484433,29517.0,29516.0,0.18080316]
[1609566166093,1.95052896,29517.0,29516.0,0.18080316]
[1609566173302,2.69001153,29517.0,29516.0,0.18080316]
[1609566175005,1.95052896,29517.0,29516.0,0.18080316]
[1609566178907,2.69032415,29517.0,29516.0,0.18080316]
[1609566182815,2.50989257,29517.0,29516.0,5.00270316]
[1609566183015,3.00443918,29517.0,29516.0,5.00270316]
[1609566184018,2.00443918,29517.0,29516.0,5.00270316]
[1609566187220,2.00443918,29517.0,29516.0,0.18080316]
[1609566189423,0.77009738,29517.0,29516.0,0.18080316]
[1609566190726,1.51159946,29517.0,29516.0,0.18080316]
[1609566191627,2.00612991,29517.0,29516.0,0.18080316]
[1609566192629,1.51159946,29517.0,29516.0,0.18080316]
[1609566193732,0.77009738,29517.0,29516.0,0.18080316]
[1609566194730,5.44639738,29517.0,29516.0,0.18080316]
[1609566195130,5.62682896,29517.0,29516.0,0.18080316]
[1609566195330,0.95052896,29517.0,29516.0,0.18080316]
[1609566196030,1.95052896,29517.0,29516.0,0.18080316]
[1609566196533,3.18640838,29517.0,29516.0,0.18080316]
[1609566206446,3.0059768,29517.0,29516.0,4.54670316]
[1609566207646,2.51143985,29517.0,29516.0,4.54670316]
[1609566207946,1.51143985,29517.0,29516.0,4.54670316]
[1609566208247,6.69143985,29517.0,29516.0,0.18080316]
[1609566208448,6.69143985,29517.0,29516.0,0.00037158]
[1609566208950,6.69143985,29517.0,29509.0,0.0003714]
[1609566209149,0.18043158,29510.0,29508.0,1.18043158]
[1609566209552,0.33945158,29510.0,29508.0,1.18043158]
[1609566209749,0.00041279,29509.0,29508.0,1.18043158]
[1609566209951,1.00041279,29509.0,29508.0,0.18043158]
[1609566210252,1.00041279,29509.0,29508.0,0.18080301]
[1609566212956,1.02120103,29509.0,29508.0,0.18080301]
[1609566213456,1.03169162,29509.0,29508.0,0.18080301]
[1609566214157,1.03169162,29509.0,29508.0,0.18043158]
[1609566214456,1.03169162,29509.0,29508.0,0.18080301]
[1609566214757,1.03169162,29509.0,29508.0,0.18117444]
[1609566214955,1.03169162,29509.0,29508.0,0.18154587]
[1609566215857,0.03169162,29509.0,29508.0,0.18154587]
[1609566216057,1.03169162,29509.0,29508.0,0.18154587]
[1609566217858,0.03169162,29509.0,29508.0,0.18154587]
[1609566218058,1.03169162,29509.0,29508.0,0.18154587]
[1609566218458,1.03127883,29509.0,29508.0,0.18154587]
[1609566221363,1.00431638,29509.0,29508.0,0.18154587]
[1609566221964,0.00431638,29509.0,29508.0,0.18154587]
[1609566222966,0.00431638,29509.0,29508.0,0.18080301]
[1609566224167,0.44085158,29510.0,29508.0,0.18080301]
[1609566224567,0.44085158,29510.0,29509.0,0.00037143]
[1609566225270,0.26042,29510.0,29509.0,0.00037143]
[1609566226269,0.26083278,29510.0,29509.0,0.00037143]
[1609566229275,0.44126436,29510.0,29509.0,0.00037143]
[1609566232080,1.44126436,29510.0,29509.0,0.00037143]
[1609566235885,0.44126436,29510.0,29509.0,0.00037143]
[1609566237889,1.44126436,29510.0,29509.0,0.00037143]
[1609566239292,1.45605756,29510.0,29509.0,0.00037143]
[1609566239791,1.44557904,29510.0,29509.0,0.00037143]
[1609566241992,0.44557904,29510.0,29509.0,0.00037143]
[1609566243092,5.78627904,29510.0,29509.0,0.00037143]
[1609566243491,5.78627904,29510.0,29504.0,0.18043158]
[1609566243894,0.00041278,29509.0,29505.0,0.00037142]
[1609566244496,0.00431449,29508.0,29505.0,0.00037142]
[1609566244893,0.00041278,29507.0,29505.0,0.00037142]
[1609566245494,0.18043158,29506.0,29505.0,0.00037142]
[1609566246094,0.18084436,29506.0,29505.0,0.00037142]
[1609566251899,1.18084436,29506.0,29505.0,0.00037142]
[1609566252801,1.18084436,29506.0,29504.0,0.12343158]
[1609566253002,4.7516,29505.0,29496.0,1.8026604]
[1609566253201,4.75201285,29505.0,29496.0,1.8026604]
[1609566253402,0.00041285,29504.0,29497.0,0.00037149]
[1609566253601,0.18043158,29498.0,29497.0,0.18080307]
[1609566254003,1.18043158,29498.0,29497.0,0.18080307]
[1609566255905,0.18043158,29498.0,29497.0,0.18080307]
[1609566258106,1.18043158,29498.0,29497.0,0.18080307]
[1609566260011,0.18043158,29498.0,29497.0,0.18080307]
[1609566272033,1.18043158,29498.0,29497.0,0.18080307]
[1609566276144,5.45203158,29498.0,29497.0,0.18080307]
[1609566276544,5.45203158,29498.0,29497.0,0.00037149]
[1609566276744,5.55710158,29498.0,29497.0,0.00037149]
[1609566276946,5.55710158,29498.0,29490.0,0.04165922]
[1609566277248,5.55710158,29498.0,29497.0,0.00037086]
[1609566277645,5.55710158,29498.0,29491.0,0.0416598]
[1609566277846,5.55710158,29498.0,29497.0,0.00037086]
[1609566278048,5.55710158,29498.0,29492.0,0.00037086]
[1609566278449,5.55710158,29498.0,29497.0,0.00037086]
[1609566278649,5.55710158,29498.0,29493.0,0.00037086]
[1609566278849,5.55710158,29498.0,29497.0,0.00037086]
[1609566279249,1.28550158,29498.0,29494.0,0.00037086]
[1609566279450,1.28591447,29498.0,29497.0,0.00037086]
[1609566279649,1.28550158,29498.0,29495.0,4.66477086]
[1609566279852,1.28550158,29498.0,29497.0,0.00037086]
[1609566280250,1.28550158,29498.0,29496.0,0.00037086]
[1609566281951,0.00041289,29497.0,29496.0,0.00037086]
[1609566282550,0.28550158,29498.0,29496.0,0.00037086]
[1609566284352,0.28550158,29498.0,29496.0,0.04165936]
[1609566285954,1.28550158,29498.0,29496.0,0.04165936]
[1609566286456,1.28550158,29498.0,29496.0,0.00037086]
[1609566286656,1.28550158,29498.0,29497.0,0.00037086]
[1609566287257,1.28591446,29498.0,29496.0,0.00037086]
[1609566287457,1.28591446,29498.0,29497.0,0.00037086]
[1609566287756,1.28550158,29498.0,29497.0,0.00037086]
[1609566287959,0.28550158,29498.0,29497.0,0.00037086]
[1609566288157,0.28591446,29498.0,29496.0,0.00037086]
[1609566288357,0.28591446,29498.0,29497.0,0.00037086]
[1609566288557,0.28550158,29498.0,29497.0,0.00037086]
[1609566288756,0.28550158,29498.0,29496.0,0.00037086]
[1609566288957,0.28591447,29498.0,29496.0,0.00037086]
[1609566289164,0.28591447,29498.0,29497.0,0.00037086]
[1609566289358,0.28550158,29498.0,29497.0,0.10107086]
[1609566289659,0.28550158,29498.0,29497.0,5.288]
[1609566289660,0.00041286,29498.0,29497.0,5.288]
[1609566289859,1.0,29500.0,29497.0,5.32965295]
[1609566290058,0.01475979,29502.0,29499.0,1.0]
[1609566290260,0.01475979,29502.0,29501.0,1.0]
[1609566290462,6.318e-05,29503.0,29501.0,1.0]
[1609566290661,6.318e-05,29503.0,29501.0,1.04164327]
[1609566290861,6.318e-05,29503.0,29502.0,0.04164246]
[1609566291062,4.73161953,29515.0,29502.0,0.04164246]
[1609566291463,0.0004127,29514.0,29500.0,0.04164059]
[1609566291662,0.0004127,29514.0,29503.0,0.00037069]
[1609566291863,0.0004127,29514.0,29513.0,0.18043158]
[1609566292263,0.0004127,29514.0,29513.0,0.18080229]
[1609566293264,0.00041273,29516.0,29513.0,0.18080229]
[1609566293562,0.00041273,29516.0,29514.0,0.00037071]
[1609566293965,0.18043158,29515.0,29514.0,0.00037071]
[1609566294363,0.18084431,29515.0,29514.0,0.00037071]
[1609566295364,0.18043158,29515.0,29514.0,0.00037071]
[1609566297166,0.18084431,29515.0,29514.0,0.00037071]
[1609566297566,0.18043158,29515.0,29514.0,0.00037071]
[1609566297766,0.18084431,29515.0,29514.0,0.00037071]
[1609566298269,0.18043158,29515.0,29514.0,0.00037071]
[1609566299967,1.18043158,29515.0,29514.0,0.00037071]
[1609566300568,1.18043158,29515.0,29514.0,4.04727071]
[1609566301170,1.18043158,29515.0,29514.0,4.0469]
[1609566302070,0.18043158,29515.0,29514.0,4.0469]
[1609566310086,1.18043158,29515.0,29513.0,0.18043158]
[1609566313189,1.18043158,29515.0,29514.0,0.0003707]
[1609566313589,1.18043158,29515.0,29513.0,0.18043158]
[1609566313790,1.18043158,29515.0,29514.0,0.0003707]
[1609566313992,1.18043158,29515.0,29513.0,0.18043158]
[1609566314292,1.18043158,29515.0,29514.0,0.0003707]
[1609566315994,0.18043158,29515.0,29514.0,0.0003707]
[1609566317395,0.18084428,29515.0,29514.0,0.0003707]
[1609566321997,1.18084428,29515.0,29514.0,0.0003707]
[1609566324103,0.18084428,29515.0,29514.0,0.0003707]
[1609566326606,0.18084428,29515.0,29514.0,4.7123707]
[1609566328704,0.0004127,29515.0,29514.0,4.7123707]
[1609566328905,0.0004127,29516.0,29514.0,4.7123707]
[1609566329305,0.0004127,29515.0,29514.0,4.7123707]
[1609566329506,0.0004127,29516.0,29514.0,4.7123707]
[1609566329707,0.0004127,29515.0,29514.0,4.7123707]
[1609566330008,0.0004127,29515.0,29514.0,4.712]
[1609566330208,0.0004127,29516.0,29514.0,4.71237069]
[1609566330609,0.0004127,29515.0,29514.0,4.71237069]
[1609566330808,0.0004127,29516.0,29514.0,4.71237069]
[1609566331209,0.0004127,29515.0,29514.0,4.71237069]
[1609566331410,0.0004127,29515.0,29514.0,4.712]
[1609566331611,0.0004127,29516.0,29514.0,4.71237068]
[1609566331811,0.0004127,29515.0,29514.0,4.71237068]
[1609566332211,0.0004127,29515.0,29514.0,4.712]
[1609566332411,0.0004127,29516.0,29514.0,4.71237068]
[1609566332612,0.0004127,29515.0,29514.0,4.71237068]
[1609566332912,0.0004127,29515.0,29514.0,4.712]
[1609566333112,0.0004127,29516.0,29514.0,4.71237069]
[1609566333514,0.0004127,29515.0,29514.0,4.71237069]
[1609566333712,0.0004127,29516.0,29514.0,4.71237069]
[1609566333913,0.0004127,29515.0,29514.0,4.71237069]
[1609566334315,0.0004127,29515.0,29514.0,4.712]
[1609566334514,0.0004127,29516.0,29514.0,4.71237068]
[1609566334714,0.0004127,29515.0,29514.0,4.71237068]
[1609566335014,0.0004127,29516.0,29514.0,4.71237068]
[1609566335214,0.0004127,29515.0,29514.0,4.71237068]
[1609566335615,0.0004127,29515.0,29514.0,4.712]
[1609566335816,0.0004127,29516.0,29514.0,4.71237122]
[1609566336019,0.0004127,29515.0,29514.0,4.71237122]
[1609566336317,0.0004127,29515.0,29514.0,4.712]
[1609566336517,0.0004127,29516.0,29514.0,4.71237122]
[1609566336917,0.0004127,29515.0,29514.0,4.71237122]
[1609566337118,0.0004127,29515.0,29514.0,4.712]
[1609566337319,0.0004127,29516.0,29514.0,4.71237122]
[1609566337719,0.0004127,29515.0,29514.0,4.71237122]
[1609566337919,0.0004127,29515.0,29514.0,4.712]
[1609566338120,0.0004127,29516.0,29514.0,4.71237122]
[1609566338521,0.0004127,29515.0,29514.0,4.71237122]
[1609566338720,0.0004127,29515.0,29514.0,4.712]
[1609566338919,0.0004127,29516.0,29514.0,4.71237123]
[1609566339220,0.0004127,29516.0,29514.0,4.712]
[1609566339421,0.0004127,29516.0,29515.0,0.00037123]
[1609566340523,0.0004127,29516.0,29514.0,4.712]
[1609566340725,0.0004127,29516.0,29515.0,0.00037122]
[1609566341424,0.0004127,29516.0,29513.0,0.18043158]
[1609566341626,0.0004127,29516.0,29515.0,4.62937122]
[1609566341827,0.0004127,29516.0,29515.0,4.629]
[1609566342031,0.0004127,29516.0,29515.0,4.62937122]
[1609566342229,0.0004127,29516.0,29515.0,4.629]
[1609566342428,0.0004127,29516.0,29515.0,4.62937121]
[1609566342828,0.0004127,29516.0,29515.0,4.629]
[1609566343130,0.0004127,29516.0,29515.0,4.62937121]
[1609566343732,0.0004127,29516.0,29515.0,4.629]
[1609566343929,0.0004127,29516.0,29515.0,4.62937121]
[1609566346333,0.0004127,29516.0,29515.0,5.62937121]
[1609566347132,0.0004127,29516.0,29515.0,5.79384121]
[1609566347433,0.00041255,29517.0,29515.0,5.79384121]
[1609566347734,0.00041255,29517.0,29516.0,0.00037107]
[1609566347935,0.00041255,29517.0,29516.0,1.00037107]
[1609566348137,0.00041255,29517.0,29516.0,2.00037107]
[1609566348738,0.61619282,29518.0,29516.0,2.18080265]
[1609566348939,0.61619282,29518.0,29517.0,0.00037105]
[1609566349939,0.61619282,29518.0,29517.0,1.00037105]
[1609566350139,0.61619282,29518.0,29517.0,2.00037105]
[1609566351844,0.6161473,29523.0,29517.0,2.00037105]
[1609566352442,0.6161473,29523.0,29518.0,0.000371]
[1609566352643,0.15355,29528.0,29522.0,0.18043158]
[1609566352843,0.15355,29528.0,29523.0,0.755]
[1609566353044,0.15355,29528.0,29523.0,0.755371]
[1609566353243,0.79549305,29537.0,29524.0,0.000371]
[1609566353845,0.00041246,29536.0,29524.0,0.000371]
[1609566354045,0.12196246,29536.0,29530.0,1.0]
[1609566354446,0.12196246,29536.0,29535.0,4.0588]
[1609566354645,0.12155,29536.0,29535.0,4.23923158]
[1609566354846,0.12196246,29536.0,29535.0,4.23960258]
[1609566356848,0.12196246,29536.0,29535.0,4.23923158]
[1609566357649,0.12155,29536.0,29535.0,4.23923158]
[1609566357950,1.12155,29536.0,29535.0,4.23923158]
[1609566359956,0.12155,29536.0,29535.0,4.23923158]
[1609566360355,0.18043158,29537.0,29535.0,4.23923158]
[1609566360556,0.18043158,29537.0,29535.0,0.18043158]
[1609566361958,1.0,29536.0,29535.0,0.18043158]
[1609566362159,1.0,29536.0,29530.0,3.8062]
[1609566362359,1.10973,29536.0,29530.0,3.8062]
[1609566362762,0.18043158,29531.0,29530.0,3.8062]
[1609566363161,0.18043158,29531.0,29530.0,3.7898]
[1609566363960,1.18043158,29531.0,29530.0,3.7608]
[1609566364160,1.18043158,29531.0,29530.0,3.7537]
[1609566365061,1.18043158,29531.0,29515.0,0.16447]
[1609566365263,0.1006,29530.0,29515.0,0.16447]
[1609566365460,0.1006,29530.0,29515.0,4.5747]
[1609566365660,0.1006,29530.0,29516.0,0.0003711]
[1609566366061,0.1006,29530.0,29524.0,4.4013]
[1609566366765,0.18043158,29525.0,29524.0,4.4013]
[1609566371269,1.0,29528.0,29524.0,4.4013]
[1609566371469,1.0,29528.0,29515.0,0.11332]
[1609566371669,1.0,29528.0,29520.0,5.122]
[1609566372071,1.0,29525.0,29520.0,5.122]
[1609566372870,1.0,29525.0,29523.0,0.18043158]
[1609566373072,0.1001,29524.0,29523.0,0.18043158]
[1609566373973,1.1001,29524.0,29523.0,0.18043158]
[1609566374572,1.1001,29524.0,29520.0,5.122]
[1609566374874,0.18043158,29521.0,29520.0,5.122]
[1609566375673,0.18043158,29521.0,29520.0,5.12237112]
[1609566376974,1.0,29526.0,29520.0,6.22337112]
[1609566377573,1.0,29526.0,29521.0,0.00037105]
[1609566377972,0.61334513,29530.0,29525.0,1.0]
[1609566378173,0.61334513,29530.0,29526.0,1.0]
[1609566378377,0.10973,29536.0,29526.0,1.0]
[1609566378575,0.61327293,29538.0,29526.0,1.000371]
[1609566378775,0.00041246,29537.0,29535.0,5.3841]
[1609566378974,0.00041246,29537.0,29536.0,0.000371]
[1609566380075,0.00041246,29539.0,29536.0,0.000371]
[1609566380978,0.00041246,29539.0,29538.0,0.18043158]
[1609566385984,6.50881246,29539.0,29528.0,4.6542]
[1609566386187,1.14778246,29539.0,29518.0,1.0]
[1609566386386,5.5271,29535.0,29529.0,0.00037102]
[1609566386587,0.1016,29534.0,29519.0,0.00037104]
[1609566386987,0.00041254,29533.0,29523.0,0.18043158]
[1609566387188,0.11705254,29533.0,29523.0,0.18043158]
[1609566387387,0.11705254,29533.0,29523.0,5.16073158]
[1609566387588,0.11705254,29533.0,29524.0,0.00037111]
[1609566387791,0.00041256,29532.0,29524.0,0.00037111]
[1609566388187,1.0,29526.0,29524.0,0.00037111]
[1609566388589,0.00041256,29525.0,29524.0,0.00037111]
[1609566388888,0.18084414,29525.0,29524.0,0.00037111]
[1609566389993,1.18084414,29525.0,29524.0,0.00037111]
[1609566390594,1.18084414,29525.0,29523.0,0.18043158]
[1609566390995,1.18084414,29525.0,29520.0,0.18043158]
[1609566391195,0.00041259,29524.0,29520.0,0.18043158]
[1609566391395,0.00041259,29524.0,29521.0,0.00037112]
[1609566392897,0.18043158,29522.0,29521.0,0.00037112]
[1609566394500,0.18043158,29522.0,29521.0,4.22977112]
[1609566397304,0.18043158,29522.0,29521.0,0.00037112]
[1609566399006,0.18043158,29522.0,29521.0,5.64927112]
[1609566399306,1.71601009,29530.0,29521.0,5.64927112]
[1609566399906,1.71601009,29530.0,29522.0,0.00037112]
[1609566400106,0.71601009,29530.0,29522.0,0.00037112]
[1609566400508,0.1018,29530.0,29522.0,0.00037112]
[1609566400708,0.00041254,29529.0,29522.0,0.00037112]
[1609566401109,0.61438376,29531.0,29528.0,5.59483158]
[1609566401408,0.61438376,29531.0,29528.0,0.1808027]
[1609566401609,0.61438376,29531.0,29529.0,0.00037112]
[1609566402910,0.29707158,29533.0,29532.0,4.1709]
[1609566403509,0.29748409,29533.0,29532.0,4.1709]
[1609566405009,0.29748409,29533.0,29532.0,4.35133158]
[1609566407713,0.91269489,29533.0,29532.0,4.35133158]
[1609566407911,0.91269489,29533.0,29532.0,4.35170269]
[1609566408311,0.91228238,29533.0,29532.0,4.35170269]
[1609566408511,0.91269489,29533.0,29532.0,4.35170269]
[1609566410015,0.29748409,29533.0,29532.0,4.35170269]
[1609566410517,0.9127707,29533.0,29532.0,4.35170269]
[1609566411114,0.9127707,29533.0,29532.0,4.35133158]
[1609566412116,0.93347885,29533.0,29532.0,4.35133158]
[1609566413718,0.93347885,29533.0,29532.0,4.3517027]
[1609566415925,0.9127707,29533.0,29532.0,4.3517027]
[1609566416925,0.93348496,29533.0,29532.0,4.3517027]
[1609566421929,0.75305338,29533.0,29532.0,4.3517027]
[1609566426239,0.11705251,29533.0,29532.0,5.3517027]
[1609566427341,0.11705251,29533.0,29532.0,4.3517027]
[1609566427742,0.11705251,29533.0,29532.0,0.1808027]
[1609566428140,0.11705251,29533.0,29532.0,1.1808027]
[1609566428542,0.11705251,29533.0,29532.0,6.2437027]
[1609566429242,0.11664,29533.0,29532.0,6.2437027]
[1609566429543,0.11705244,29533.0,29532.0,6.2437027]
[1609566429742,0.11664,29533.0,29532.0,6.2437027]
[1609566430142,0.11705244,29533.0,29532.0,6.2437027]
[1609566430345,0.11664,29533.0,29532.0,6.2437027]
[1609566430545,0.14737,29539.0,29532.0,6.2437027]
[1609566430944,0.02070651,29540.0,29532.0,6.2437027]
[1609566431144,0.00041242,29538.0,29533.0,0.00037103]
[1609566431345,0.14595,29538.0,29533.0,0.00037103]
[1609566431745,0.00041242,29537.0,29533.0,0.00037103]
[1609566433149,0.00041242,29537.0,29536.0,0.18043158]
[1609566433748,0.00041242,29537.0,29536.0,0.18080261]
[1609566436150,0.14595,29538.0,29537.0,5.6495]
[1609566436551,0.02069485,29542.0,29537.0,5.6495]
[1609566436751,0.02069485,29542.0,29537.0,5.64987098]
[1609566436951,0.02069485,29542.0,29538.0,0.00037098]
[1609566437152,0.02068975,29545.0,29541.0,0.18043158]
[1609566437552,0.00041237,29544.0,29541.0,0.18043158]
[1609566437751,0.00041237,29544.0,29543.0,4.4522]
[1609566438453,0.00041237,29544.0,29543.0,4.45257098]
[1609566440455,0.00041237,29544.0,29543.0,4.4522]
[1609566440654,0.00041237,29544.0,29543.0,4.45257099]
[1609566440856,0.00041237,29544.0,29541.0,0.18043158]
[1609566441058,0.13182237,29544.0,29541.0,0.18043158]
[1609566441258,0.18043158,29543.0,29541.0,0.18043158]
[1609566441456,0.18084397,29543.0,29542.0,0.00037099]
[1609566441657,0.18043158,29543.0,29542.0,0.00037099]
[1609566441857,0.18084397,29543.0,29542.0,0.657]
[1609566442356,0.18084397,29543.0,29542.0,0.657371]
[1609566442557,0.00041239,29543.0,29542.0,0.657371]
[1609566443458,0.00041239,29543.0,29542.0,0.657]
[1609566443958,0.00041239,29543.0,29542.0,0.65737099]
[1609566446661,0.00041238,29543.0,29542.0,0.65737099]
[1609566451269,0.00041238,29543.0,29542.0,0.00037099]
[1609566457676,0.18084396,29543.0,29542.0,0.00037099]
[1609566458078,1.18084396,29543.0,29542.0,0.00037099]
[1609566460279,1.28154396,29543.0,29542.0,0.00037099]
[1609566460479,2.28154396,29543.0,29542.0,0.00037099]
[1609566460680,6.93814396,29543.0,29542.0,0.00037099]
[1609566460880,6.93814396,29543.0,29532.0,5.4521]
[1609566461079,6.95883426,29543.0,29542.0,0.00037265]
[1609566461279,6.95883426,29543.0,29533.0,0.00037265]
[1609566461680,0.18043158,29534.0,29533.0,0.18043158]
[1609566461881,0.28093158,29534.0,29533.0,0.18043158]
[1609566462082,1.28134407,29534.0,29533.0,0.18080427]
[1609566464586,1.30204164,29534.0,29533.0,0.18080427]
[1609566465188,1.20154164,29534.0,29533.0,0.18080427]
[1609566465587,1.20154164,29534.0,29533.0,0.84080427]
[1609566465888,1.81646999,29534.0,29533.0,0.84080427]
[1609566466088,0.81646999,29534.0,29533.0,0.84080427]
[1609566466288,0.8160575,29534.0,29533.0,0.84080427]
[1609566466688,0.18043158,29534.0,29533.0,0.84080427]
[1609566466887,0.18043158,29534.0,29533.0,0.84080423]
[1609566470597,0.18043158,29534.0,29533.0,0.18080423]
[1609566473997,1.18043158,29534.0,29533.0,0.18080423]
[1609566474196,1.18043158,29534.0,29533.0,4.57790423]
[1609566474497,1.18043158,29534.0,29533.0,0.18080423]
[1609566480003,0.18043158,29534.0,29533.0,0.18080423]
[1609566482006,1.18043158,29534.0,29533.0,0.18080423]
[1609566488918,1.18084401,29534.0,29533.0,0.18080423]
[1609566489219,1.18084401,29534.0,29533.0,0.86780423]
[1609566496030,0.18084401,29534.0,29533.0,0.86780423]
[1609566496232,1.18084401,29534.0,29533.0,0.86780423]
[1609566502238,1.00041243,29534.0,29533.0,0.68737265]
[1609566502841,1.10251243,29534.0,29533.0,0.68737265]
[1609566503543,1.00041243,29534.0,29533.0,0.68737265]
[1609566504046,1.00041243,29534.0,29533.0,0.86780423]
[1609566504745,1.10191243,29534.0,29533.0,0.18080423]
[1609566504945,6.22191243,29534.0,29526.0,5.0701]
[1609566505346,0.00041248,29533.0,29527.0,0.04162062]